fUST/lending_fUST_20240416
["ID","MTS","AMOUNT","RATE_DAILY","PERIOD"]
[322768183,1713271893400,166.7564901,0.00020212,2]
[322768184,1713271910955,500.0,0.00038354,40]
[322768185,1713271911208,500.0,0.00038354,40]
[322768186,1713271911484,500.0,0.00038354,40]
[322768187,1713271911776,500.0,0.00038354,40]
[322768188,1713271912028,576.85,0.00038354,40]
[322768195,1713272172501,500.0,0.00038308,40]
[322768196,1713272172818,500.0,0.00038308,40]
[322768197,1713272173105,500.0,0.00038308,40]
[322768198,1713272173401,500.0,0.00038308,40]
[322768199,1713272173690,500.0,0.00038308,40]
[322768200,1713272174056,500.0,0.00038308,40]
[322768201,1713272174392,500.0,0.00038308,40]
[322768202,1713272174666,500.0,0.00038308,40]
[322768203,1713272174947,500.0,0.00038308,40]
[322768204,1713272175224,500.0,0.00038308,40]
[322768205,1713272175511,500.0,0.00038308,40]
[322768206,1713272175878,355.09099412,0.00038308,40]
[322768207,1713272242609,523.60793824,0.00021426,4]
[322768208,1713272268537,523.60793824,0.00021426,4]
[322768210,1713272415778,5000.0,0.000241,5]
[322768211,1713272424193,3571.51976709,0.000241,5]
[322768212,1713272555908,3941.0367081,0.00020382,2]
[322768213,1713272612028,1772.83150552,0.000241,6]
[322768733,1713273046616,-468.90340767,0.00021307,2]
[322768735,1713273046625,-880.8735514,0.00021308,2]
[322768737,1713273046637,-8000.0,0.00021308,2]
[322768739,1713273046645,-2008.12370018,0.00021309,2]
[322768741,1713273046654,-300.0,0.00021309,2]
[322768743,1713273046663,-300.0,0.00021309,2]
[322768745,1713273046672,-31260.08043228,0.00021311,2]
[322768747,1713273046681,-2851.72477791,0.00021313,2]
[322768749,1713273046690,-312.27754554,0.00021317,2]
[322768751,1713273046699,-733.91940838,0.0002134,2]
[322768753,1713273046708,-1029.76269426,0.00021426,2]
[322768755,1713273046717,-561.25439362,0.00021426,2]
[322768757,1713273046728,-155.04549281,0.00021434,2]
[322768758,1713273046739,-349.1854531,0.00021436,2]
[322768760,1713273046749,-500.0,0.00021436,2]
[322768762,1713273046759,-327.78737273,0.00021436,2]
[322768765,1713273046769,-59078.09409439,0.00021437,2]
[322768766,1713273046779,-2440.02827644,0.00021438,2]
[322768769,1713273046790,-236.36856074,0.0002144,2]
[322768771,1713273046800,-408.35163562,0.0002144,2]
[322768773,1713273046810,-1488.29556795,0.0002144,2]
[322768774,1713273046820,-241.15022628,0.0002144,2]
[322768776,1713273046830,-245.38581423,0.00021441,2]
[322768778,1713273046841,-810.55972928,0.00021441,2]
[322768781,1713273046852,-686.7560881,0.00021443,2]
[322768783,1713273046864,-563.61476546,0.00021579,2]
[322768784,1713273046874,-163.91782719,0.00021579,2]
[322768786,1713273046886,-179.70627189,0.0002181,2]
[322768788,1713273046895,-242.73570421,0.00021811,2]
[322768790,1713273046906,-420.0,0.00023172,2]
[322768792,1713273046916,-420.0,0.0002344,2]
[322768794,1713273046926,-172.24968334,0.00023781,2]
[322768795,1713273046934,-155.50621329,0.00023781,2]
[322768796,1713273046944,-500.21886874,0.00023879,2]
[322768797,1713273046955,-161.77699218,0.00023881,2]
[322768798,1713273046965,-194.20998821,0.00023882,2]
[322768799,1713273046975,-733.91940835,0.0002398,2]
[322768800,1713273046985,-1509.54607394,0.00024,2]
[322768801,1713273046994,-290.99969794,0.000241,2]
[322768802,1713273047003,-151.0,0.000244,2]
[322768803,1713273047013,-216.09314923,0.00024657,2]
[322768804,1713273047022,-5828.9689865,0.00024658,10]
[322768805,1713273047031,-200.0,0.00024658,15]
[322768806,1713273047040,-200.0,0.00024658,2]
[322768807,1713273047050,-250.05176068,0.000249,2]
[322768808,1713273047059,-250.05176049,0.000249,2]
[322768809,1713273047069,-250.05176049,0.000249,2]
[322768810,1713273047078,-250.05176049,0.000249,2]
[322768811,1713273047088,-250.05176049,0.000249,2]
[322768812,1713273047097,-250.05176049,0.000249,2]
[322768813,1713273047106,-250.05176049,0.000249,2]
[322768814,1713273047115,-250.05176049,0.000249,2]
[322768815,1713273047125,-250.05176049,0.000249,2]
[322768816,1713273047138,-250.05176049,0.000249,2]
[322768817,1713273047147,-250.05176049,0.000249,2]
[322768818,1713273047157,-250.05176049,0.000249,2]
[322768819,1713273047166,-250.05176049,0.000249,2]
[322768820,1713273047175,-250.05176049,0.000249,2]
[322768821,1713273047185,-250.05176049,0.000249,2]
[322768822,1713273047195,-250.05176049,0.000249,2]
[322768823,1713273047204,-587.0,0.00025784,2]
[322768824,1713273047214,-153.0,0.0002589,2]
[322768825,1713273047223,-153.0,0.0002589,2]
[322768826,1713273047232,-203.2157658,0.0002589,2]
[322768827,1713273047243,-153.0,0.0002589,2]
[322768828,1713273047253,-203.2157658,0.0002589,2]
[322768829,1713273047262,-153.0,0.0002589,2]
[322768830,1713273047272,-406.3523755,0.0002589,2]
[322768831,1713273047281,-203.2157658,0.0002589,2]
[322768832,1713273047290,-161.92429213,0.00025988,2]
[322768833,1713273047300,-183.71401851,0.00026,2]
[322768834,1713273047311,-150.0,0.000262,2]
[322768835,1713273047321,-1000.0,0.000262,2]
[322768836,1713273047331,-208.51784019,0.00026251,2]
[322768837,1713273047341,-1000.0,0.00026251,2]
[322768839,1713273047351,-351.17398426,0.00026252,2]
[322768840,1713273047362,-203.1366097,0.00026305,2]
[322768841,1713273047372,-417.0231095,0.0002633,2]
[322768842,1713273047385,-203.2157658,0.0002633,2]
[322768843,1713273047395,-203.2157658,0.0002633,2]
[322768844,1713273047404,-153.0,0.0002633,2]
[322768845,1713273047414,-381.0891784,0.0002633,2]
[322768846,1713273047423,-203.2157658,0.0002633,2]
[322768847,1713273047433,-153.0,0.0002633,2]
[322768848,1713273047443,-153.0,0.0002633,2]
[322768849,1713273047453,-203.2157658,0.0002633,2]
[322768850,1713273047463,-203.2157658,0.0002633,2]
[322768851,1713273047473,-153.0,0.0002633,2]
[322768852,1713273047484,-153.0,0.0002633,2]
[322768853,1713273047494,-203.2157658,0.0002633,2]
[322768854,1713273047504,-153.0,0.0002633,2]
[322768855,1713273047513,-153.0,0.0002633,2]
[322768856,1713273047523,-203.2157658,0.0002633,2]
[322768857,1713273047532,-153.0,0.0002633,2]
[322768858,1713273047544,-153.0,0.0002633,2]
[322768859,1713273047554,-153.0,0.0002633,2]
[322768860,1713273047564,-306.0,0.0002633,2]
[322768861,1713273047574,-153.0,0.00026372,2]
[322768862,1713273047584,-153.0,0.00026372,2]
[322768863,1713273047593,-153.0,0.0002639,2]
[322768864,1713273047602,-203.2157658,0.00026412,2]
[322768865,1713273047613,-203.2157658,0.00026412,2]
[322768866,1713273047623,-153.0,0.00026412,2]
[322768867,1713273047636,-203.2157658,0.00026412,2]
[322768868,1713273047646,-153.0,0.00026412,2]
[322768869,1713273047656,-153.0,0.00026412,2]
[322768870,1713273047666,-153.0,0.00026412,2]
[322768871,1713273047676,-153.0,0.00026412,2]
[322768872,1713273047686,-389.2678003,0.0002659,2]
[322768873,1713273047696,-153.0,0.0002659,2]
[322768874,1713273047706,-157.2335145,0.0002659,2]
[322768875,1713273047715,-733.91940835,0.0002662,2]
[322768876,1713273047724,-203.2157658,0.00026712,2]
[322768877,1713273047735,-203.2157658,0.00026712,2]
[322768878,1713273047745,-203.2157658,0.00026712,2]
[322768879,1713273047755,-950.73507677,0.00027066,2]
[322768880,1713273047766,-150.0,0.000272,2]
[322768881,1713273047777,-159.375976,0.00027397,2]
[322768882,1713273047787,-390.491366,0.00027397,2]
[322768883,1713273047797,-230.524947,0.00027397,2]
[322768884,1713273047807,-8.12103021,0.00027397,2]
[322768897,1713273818046,926.17888641,0.00020236,2]
[322768899,1713273859465,200.0,0.00020918,2]
[322768901,1713273924787,174.502958,0.00020201,2]
[322768902,1713273924830,304.80213581,0.00021201,4]
[322768903,1713273932595,154.86062544,0.00020918,2]
[322768905,1713273948756,248.07234928,0.00020918,2]
[322768906,1713273965090,2619.31188026,0.00018853,2]
[322768908,1713273973631,1949.05164412,0.000189,2]
[322768910,1713274035960,168.527542,0.00019809,2]
[322768911,1713274062700,345.06911175,0.0002098,2]
[322768912,1713274071542,-345.06911174,0.00021041,2]
[322768913,1713274071970,880.8735514,0.0002104,2]
[322768914,1713274073323,282.84894318,0.0002104,2]
[322768915,1713274074042,154.86062544,0.0002104,2]
[322768916,1713274074153,888.25128644,0.0002104,2]
[322768917,1713274075661,525.62755564,0.0002104,2]
[322768918,1713274076176,1577.39981442,0.0002104,2]
[322768919,1713274109450,250.0,0.00020205,2]
[322768920,1713274113578,474.09698866,0.00020204,2]
[322768921,1713274114396,470.89831674,0.00020204,2]
[322768922,1713274115754,361.53177348,0.00020204,2]
[322768923,1713274116410,193.34178193,0.00020204,2]
[322768924,1713274120703,154.86062544,0.00020203,2]
[322768925,1713274120740,882.54597478,0.00020203,2]
[322768926,1713274120770,154.86062544,0.00020203,2]
[322768929,1713274169997,1061.69651151,0.00020936,2]
[322768930,1713274170226,579.9896603,0.00020032,2]
[322768931,1713274172059,24900.0,0.00020032,2]
[322768932,1713274177872,450.0,0.00038491,40]
[322768933,1713274214959,500.0,0.00038491,40]
[322768934,1713274215228,538.0623046,0.00038491,40]
[322768966,1713274232705,-1000.0,0.00021018,2]
[322768968,1713274232715,-468.90340767,0.00021018,2]
[322768970,1713274232725,-2096.53898841,0.00021019,2]
[322768972,1713274232735,-236.36856074,0.00021019,2]
[322768974,1713274232744,-154.86062544,0.00021019,2]
[322768976,1713274232757,-1548.57059938,0.0002102,2]
[322768979,1713274232770,-3741.59464922,0.0002102,2]
[322768981,1713274232780,-880.8735514,0.0002102,2]
[322768982,1713274232789,-154.86062544,0.0002102,2]
[322768984,1713274232798,-5577.30962124,0.0002102,2]
[322768985,1713274232807,-525.62755564,0.00021021,2]
[322768986,1713274232817,-937.67905984,0.00021021,2]
[322768987,1713274232826,-467.74734708,0.00021021,2]
[322768988,1713274232836,-1309.83144143,0.00021021,2]
[322768989,1713274232845,-539.113023,0.00021021,2]
[322768990,1713274232856,-888.25128644,0.00021021,2]
[322768991,1713274232865,-211.78356765,0.00021022,2]
[322768992,1713274232874,-277.53714378,0.00021022,2]
[322768993,1713274232884,-1488.29556795,0.00021022,2]
[322768994,1713274232894,-205.79685127,0.00021022,2]
[322768996,1713274232903,-154.86062544,0.00021022,2]
[322768997,1713274232912,-398.49367045,0.00021023,2]
[322769010,1713274233073,-156.81604531,0.00021023,2]
[322769012,1713274233083,-9561.03093964,0.00021023,2]
[322769013,1713274233092,-157.54180286,0.00021023,2]
[322769014,1713274233102,-1673.39655202,0.00021023,2]
[322769015,1713274233112,-8000.0,0.00021023,2]
[322769017,1713274233121,-882.54597478,0.00021023,2]
[322769018,1713274233130,-602.48199524,0.00021023,2]
[322769020,1713274233139,-1089.02483365,0.00021023,2]
[322769022,1713274233149,-300.0,0.00021023,2]
[322769023,1713274233158,-300.0,0.00021023,2]
[322769024,1713274233166,-326.93310549,0.00021024,2]
[322769026,1713274233176,-154.86062544,0.00021024,2]
[322769028,1713274233185,-308.06776878,0.00021024,2]
[322769029,1713274233195,-2008.12370018,0.00021024,2]
[322769031,1713274233204,-2125.26432381,0.00021024,2]
[322769033,1713274233213,-622.83952412,0.00021024,2]
[322769034,1713274233222,-216.14726331,0.00021024,2]
[322769036,1713274233232,-5793.01191531,0.00021024,2]
[322769037,1713274233242,-622.83952412,0.00021024,2]
[322769038,1713274233256,-622.83952412,0.00021024,2]
[322769039,1713274233266,-622.83952412,0.00021024,2]
[322769040,1713274233275,-1934.11105664,0.00021025,2]
[322769041,1713274233285,-154.86062544,0.00021025,2]
[322769042,1713274233295,-408.35163562,0.00021025,2]
[322769043,1713274233304,-185.93831194,0.00021025,2]
[322769044,1713274233314,-2941.33783919,0.00021026,2]
[322769045,1713274233323,-27114.76530867,0.00021026,2]
[322769046,1713274233402,-2077.4252429,0.00021026,2]
[322769047,1713274233413,-386.01217285,0.00021026,2]
[322769118,1713274238753,-207.60962088,0.00021017,2]
[322769120,1713274238763,-755.00037912,0.00021017,2]
[322769125,1713274238808,-1829.46805293,0.00021017,2]
[322769127,1713274238818,-1210.62766048,0.00021018,2]
[322769147,1713274240727,-1238.38673238,0.00021018,2]
[322769149,1713274240738,-1212.64643191,0.00021018,2]
[322769390,1713274249353,154.86062544,0.00016819,2]
[322769391,1713274261103,154.84515485,0.00038491,40]
[322769392,1713274269351,154.86062544,0.00016812,2]
[322769393,1713274274996,1421.24801796,0.00018926,2]
[322769394,1713274291347,273.20884902,0.00016812,2]
[322769395,1713274328749,746.17388621,0.00020904,2]
[322769396,1713274361209,5577.30962124,0.00021,2]
[322769397,1713274362731,408.35163562,0.00021,2]
[322769398,1713274363232,2096.53898841,0.00021,2]
[322769399,1713274366853,332.07805871,0.00020999,2]
[322769400,1713274367830,5793.01191531,0.00021,2]
[322769401,1713274367990,880.8735514,0.00020999,2]
[322769402,1713274368024,326.93310549,0.00020999,2]
[322769403,1713274369191,205.79685127,0.00020999,2]
[322769404,1713274369224,31260.08043228,0.00021,2]
[322769405,1713274369463,59078.09409439,0.00021,2]
[322769406,1713274369961,185.93831194,0.00021,2]
[322769407,1713274370283,1000.0,0.00021,2]
[322769408,1713274370530,211.78356765,0.00021,2]
[322769409,1713274370821,602.48199524,0.00021,2]
[322769410,1713274371762,2584.46843205,0.00021,2]
[322769411,1713274371818,3741.59464922,0.00021,2]
[322769412,1713274373214,831.41090198,0.00021,2]
[322769413,1713274380354,766.58864289,0.00018902,2]
[322769414,1713274409222,174.502958,0.00020006,2]
[322769416,1713274458010,6886.52615186,0.00038464,40]
[322769420,1713274550963,3303.98,0.00038464,40]
[322769421,1713274551269,3303.98,0.00038464,40]
[322769422,1713274551610,3303.98,0.00038464,40]
[322769423,1713274551911,3303.98,0.00038464,40]
[322769424,1713274552213,3303.98,0.00038464,40]
[322769425,1713274552620,3303.98,0.00038464,40]
[322769426,1713274552991,3303.98,0.00038464,40]
[322769427,1713274553245,3303.98,0.00038464,40]
[322769428,1713274553560,3303.98,0.00038464,40]
[322769429,1713274553825,3303.98,0.00038464,40]
[322769430,1713274554170,3303.98,0.00038464,40]
[322769431,1713274554560,3303.98,0.00038464,40]
[322769432,1713274554818,3303.98,0.00038464,40]
[322769433,1713274555109,3303.98,0.00038464,40]
[322769434,1713274555461,3303.98,0.00038464,40]
[322769435,1713274555754,3303.98,0.00038464,40]
[322769436,1713274556056,3303.98,0.00038464,40]
[322769437,1713274556328,3303.98,0.00038464,40]
[322769438,1713274556611,3303.98,0.00038464,40]
[322769439,1713274557102,3303.98,0.00038464,40]
[322769440,1713274557375,3303.98,0.00038464,40]
[322769441,1713274557683,3303.98,0.00038464,40]
[322769442,1713274557957,3303.98,0.00038464,40]
[322769443,1713274558228,3304.049968,0.00038464,40]
[322769444,1713274620133,154.87609912,0.00038464,40]
[322769448,1713274703434,8058.90839911,0.00020022,2]
[322769450,1713274921341,531.78529955,0.00038428,40]
[322769451,1713274966283,205.79685127,0.000199,2]
[322769452,1713274972517,888.25128644,0.000199,2]
[322769453,1713274977403,467.74734708,0.000199,2]
[322769454,1713274977896,1309.83144143,0.000199,2]
[322769455,1713274977952,602.48199524,0.000199,2]
[322769456,1713274978872,2584.46843205,0.000199,2]
[322769458,1713274986808,2941.42264649,0.00019801,2]
[322769461,1713275016220,930.68876428,0.00019018,2]
[322769475,1713275037291,523.60793824,0.0002,4]
[322769476,1713275071614,-10164.0,0.00019795,2]
[322769477,1713275118191,519.0311523,0.00038427,40]
[322769478,1713275166658,674.04214351,0.00019691,2]
[322769479,1713275189610,1485.37151468,0.000241,6]
[322769480,1713275203190,-221.67336766,0.00019781,2]
[322769481,1713275214682,170.617276,0.00019178,2]
[322769483,1713275261606,7224.65181621,0.00018784,2]
[322769484,1713275261639,9000.0,0.00018784,2]
[322769485,1713275261695,4120.78810709,0.00018784,2]
[322769486,1713275352107,-888.25128644,0.00019763,2]
[322769487,1713275352127,-2008.12370018,0.00019764,2]
[322769488,1713275352148,-602.48199524,0.00019764,2]
[322769489,1713275352168,-1089.02483365,0.00019765,2]
[322769490,1713275352188,-1488.29556795,0.00019765,2]
[322769491,1713275352207,-205.79685127,0.00019765,2]
[322769492,1713275352227,-300.0,0.00019765,2]
[322769493,1713275352251,-300.0,0.00019765,2]
[322769494,1713275352272,-236.36856074,0.00019766,2]
[322769495,1713275352292,-207.60962088,0.00019766,2]
[322769496,1713275352313,-380.82518365,0.00019766,2]
[322769676,1713275437918,-602.48199524,0.00019755,2]
[322769677,1713275437928,-332.07805871,0.00019756,2]
[322769678,1713275437938,-205.79685127,0.00019756,2]
[322769679,1713275437947,-2008.12370018,0.00019756,2]
[322769680,1713275437957,-332.07805871,0.00019756,2]
[322769681,1713275437969,-880.8735514,0.00019756,2]
[322769682,1713275437979,-539.113023,0.00019757,2]
[322769683,1713275437989,-282.84894318,0.00019757,2]
[322769684,1713275437999,-703.40006861,0.00019757,2]
[322769687,1713275438010,-467.74734708,0.00019758,2]
[322769688,1713275438019,-154.87609912,0.00019759,2]
[322769690,1713275438030,-3741.59464922,0.00019759,2]
[322769692,1713275438040,-7857.04488403,0.00019759,2]
[322769693,1713275438054,-408.35163562,0.0001976,2]
[322769695,1713275438065,-1309.83144143,0.0001976,2]
[322769697,1713275438075,-300.0,0.0001976,2]
[322769699,1713275438086,-300.0,0.0001976,2]
[322769702,1713275438096,-4200.00305497,0.00019762,2]
[322769703,1713275438107,-31260.08043228,0.00019764,2]
[322769704,1713275438117,-886.24933542,0.00019765,2]
[322769705,1713275438127,-1088.23087969,0.00019765,2]
[322769706,1713275438138,-207.49798094,0.00019765,2]
[322769709,1713275438149,-382.79704515,0.00019765,2]
[322769711,1713275438159,-236.00932592,0.00019765,2]
[322769713,1713275438170,-332.07805871,0.00019768,2]
[322769715,1713275438180,-469.91088089,0.00019793,2]
[322769717,1713275438190,-163.91782719,0.00019793,2]
[322769719,1713275438200,-6444.29714703,0.00019801,2]
[322769721,1713275438210,-628.9345855,0.00019901,2]
[322769723,1713275438220,-447.26237342,0.00019993,2]
[322769725,1713275438230,-500.0,0.00019999,2]
[322769727,1713275438240,-500.0,0.00019999,2]
[322769729,1713275438250,-500.0,0.00019999,2]
[322769731,1713275438260,-500.0,0.00019999,2]
[322769734,1713275438271,-500.0,0.00019999,2]
[322769736,1713275438281,-500.0,0.00019999,2]
[322769737,1713275438291,-578.81363418,0.00019999,2]
[322769738,1713275438307,-500.0,0.00019999,2]
[322769740,1713275438317,-500.0,0.00019999,2]
[322769742,1713275438327,-500.0,0.00019999,2]
[322769744,1713275438338,-500.0,0.00019999,2]
[322769746,1713275438348,-500.0,0.00019999,2]
[322769748,1713275438358,-500.0,0.00019999,2]
[322769750,1713275438368,-500.0,0.00019999,2]
[322769752,1713275438377,-500.0,0.00019999,2]
[322769754,1713275438388,-334.33502392,0.00019999,2]
[322769756,1713275438397,-500.0,0.00019999,2]
[322769758,1713275438408,-500.0,0.00019999,2]
[322769761,1713275438418,-500.0,0.00019999,2]
[322769763,1713275438428,-500.0,0.00019999,2]
[322769765,1713275438438,-500.0,0.00019999,2]
[322769767,1713275438448,-500.0,0.00019999,2]
[322769769,1713275438459,-500.0,0.00019999,2]
[322769771,1713275438469,-500.0,0.00019999,2]
[322769788,1713275438639,-500.0,0.00019999,2]
[322769791,1713275438652,-500.0,0.00019999,2]
[322769793,1713275438662,-9561.03093964,0.0002,2]
[322769794,1713275438671,-8000.0,0.0002,2]
[322769797,1713275438681,-468.90340767,0.0002,2]
[322769799,1713275438690,-688.41882977,0.0002,2]
[322769801,1713275438699,-1169.15000856,0.00020001,2]
[322769803,1713275438708,-892.51396408,0.00020924,2]
[322769805,1713275438718,-5577.30962124,0.00021,2]
[322769807,1713275438727,-1662.41219777,0.00021002,2]
[322769809,1713275438737,-766.40682996,0.00021024,2]
[322769811,1713275438746,-546.53870153,0.00021024,2]
[322769813,1713275438755,-1043.68903253,0.00021024,2]
[322769815,1713275438764,-216.03903515,0.00021024,2]
[322769817,1713275438774,-2129.67240822,0.00021024,2]
[322769819,1713275438784,-285.91357752,0.00021024,2]
[322769821,1713275438793,-247.49670311,0.00021024,2]
[322769823,1713275438806,-1943.07467246,0.00021024,2]
[322769825,1713275438815,-155.14999386,0.00021024,2]
[322769827,1713275438825,-157.45667874,0.00021024,2]
[322769829,1713275438834,-373.86845917,0.00021024,2]
[322769831,1713275438843,-525.21690715,0.00021024,2]
[322769833,1713275438853,-881.91242128,0.00021024,2]
[322769835,1713275438863,-277.3724769,0.00021024,2]
[322769837,1713275438871,-284.55591771,0.00021024,2]
[322769839,1713275438881,-916.86719643,0.00021024,2]
[322769841,1713275438891,-1016.00046324,0.00021025,2]
[322769843,1713275438901,-155.32821053,0.00021034,2]
[322769845,1713275438910,-306.7842674,0.00021034,2]
[322769847,1713275438920,-473.91800256,0.00021035,2]
[322769849,1713275438930,-194.22035295,0.00021035,2]
[322769850,1713275438939,-476.71789655,0.00021035,2]
[322769852,1713275438949,-363.2958952,0.00021035,2]
[322769854,1713275438959,-309.65942103,0.00021075,2]
[322769856,1713275438968,-2620.55215176,0.00021097,2]
[322769858,1713275438977,-186.80513821,0.00021098,2]
[322769860,1713275438986,-266.03652124,0.00021107,2]
[322769862,1713275438995,-1000.0,0.00021107,2]
[322769864,1713275439004,-154.84515485,0.00021107,2]
[322769866,1713275439013,-1724.63424034,0.00021108,2]
[322769868,1713275439024,-50854.13828518,0.00021108,2]
[322769870,1713275439033,-358.0198625,0.00021108,2]
[322769872,1713275439042,-24745.75269083,0.00021109,2]
[322769874,1713275439056,-563.61476546,0.00021201,2]
[322769876,1713275439067,-237.82003824,0.00021201,2]
[322769878,1713275439076,-173.04152875,0.00021201,2]
[322769880,1713275439085,-199.14035953,0.00021201,2]
[322769882,1713275439094,-309.61300308,0.00021201,2]
[322769884,1713275439104,-309.56665615,0.00021201,2]
[322769886,1713275439113,-155.24421916,0.00021201,2]
[322769888,1713275439122,-244.05504768,0.00021201,2]
[322769890,1713275439131,-238.20468273,0.00021203,2]
[322769892,1713275439140,-154.87609912,0.00021203,2]
[322769894,1713275439150,-154.87609912,0.00021203,2]
[322769896,1713275439159,-309.64394735,0.00021203,2]
[322769898,1713275439168,-167.29762662,0.00021203,2]
[322769900,1713275439176,-154.93215226,0.00021301,2]
[322769902,1713275439185,-216.32877159,0.00021301,2]
[322769903,1713275439194,-155.04472469,0.00021301,2]
[322769905,1713275439203,-154.90086632,0.00021301,2]
[322769908,1713275439212,-158.6713193,0.00021301,2]
[322769909,1713275439221,-159.88602262,0.00021301,2]
[322769912,1713275439230,-230.92352312,0.00021301,2]
[322769914,1713275439240,-257.77040889,0.00021301,2]
[322769916,1713275439248,-154.97666253,0.00021301,2]
[322769917,1713275439258,-155.0462176,0.00021301,2]
[322769919,1713275439266,-219.54209779,0.00021301,2]
[322769921,1713275439275,-953.73793423,0.00021301,2]
[322769923,1713275439285,-241.07910305,0.00021301,2]
[322769925,1713275439294,-420.0,0.00021522,2]
[322769928,1713275439311,-420.0,0.00021736,2]
[322769930,1713275439321,-158.76974363,0.00022,2]
[322769932,1713275439330,-587.0,0.0002344,2]
[322769934,1713275439339,-892.51396407,0.00023666,2]
[322769936,1713275439349,-500.0,0.00023909,2]
[322769938,1713275439358,-500.0,0.00023909,2]
[322769940,1713275439367,-500.0,0.00023909,2]
[322769942,1713275439376,-500.0,0.00023909,2]
[322769943,1713275439385,-500.0,0.00023909,2]
[322769944,1713275439394,-454.45900497,0.00023909,2]
[322769945,1713275439403,-587.0,0.0002391,2]
[322769946,1713275439412,-380.0,0.00024658,2]
[322769947,1713275439421,-171.522234,0.00024877,2]
[322769948,1713275439431,-250.05176049,0.000249,2]
[322769949,1713275439440,-250.05176049,0.000249,2]
[322769951,1713275439449,-153.0,0.00025508,2]
[322769953,1713275439458,-153.0,0.00025508,2]
[322769954,1713275439468,-153.0,0.00025508,2]
[322769955,1713275439477,-823.0,0.0002553,2]
[322769956,1713275439486,-153.0,0.00025556,2]
[322769957,1713275439495,-153.0,0.00025756,2]
[322769958,1713275439505,-153.0,0.00025756,2]
[322769959,1713275439514,-306.0,0.00025756,2]
[322769960,1713275439523,-153.0,0.00025756,2]
[322769961,1713275439532,-153.0,0.00025781,2]
[322769962,1713275439542,-153.0,0.00025856,2]
[322769963,1713275439554,-153.0,0.00025856,2]
[322769964,1713275439563,-153.0,0.00025856,2]
[322769965,1713275439573,-153.0,0.00025856,2]
[322769966,1713275439583,-2000.0,0.000262,2]
[322769967,1713275439592,-823.0,0.00026301,2]
[322769968,1713275439602,-153.0,0.0002633,2]
[322769969,1713275439612,-153.0,0.0002633,2]
[322769970,1713275439621,-153.0,0.0002633,2]
[322769971,1713275439630,-153.0,0.0002633,2]
[322769972,1713275439640,-153.0,0.0002633,2]
[322769973,1713275439649,-153.0,0.0002633,2]
[322769974,1713275439658,-153.0,0.0002633,2]
[322769975,1713275439667,-153.0,0.0002633,2]
[322769976,1713275439677,-167.4944368,0.0002633,2]
[322769977,1713275439686,-892.51396407,0.00026407,2]
[322769978,1713275439695,-582.43792094,0.000269,4]
[322769979,1713275439704,-3311.66693639,0.00027,2]
[322769980,1713275439714,-332.01154009,0.00027,2]
[322769981,1713275439723,-151.0,0.00027,2]
[322769982,1713275439733,-314.409192,0.00027,2]
[322769983,1713275439742,-314.409192,0.00027,2]
[322769984,1713275439752,-155.27729186,0.00027,2]
[322769985,1713275439762,-2000.0,0.000272,3]
[322769987,1713275439772,-151.0,0.000272,2]
[322769989,1713275439781,-179.654722,0.000272,2]
[322769992,1713275439791,-151.0,0.000272,2]
[322769995,1713275439804,-151.0,0.000272,2]
[322769998,1713275439813,-281.031849,0.000272,2]
[322770001,1713275439822,-151.0,0.000272,2]
[322770004,1713275439831,-247.965676,0.000272,2]
[322770007,1713275439840,-151.0,0.000272,2]
[322770010,1713275439849,-247.965676,0.000272,2]
[322770012,1713275439858,-151.0,0.000272,2]
[322770015,1713275439868,-151.0,0.000272,2]
[322770018,1713275439877,-717.189625,0.000272,2]